fUST/lending_fUST_20251105
["ID","MTS","AMOUNT","RATE_DAILY","PERIOD"]
[393223840,1762345756682,-500.0,0.0001577,2]
[393223841,1762345756701,-500.0,0.0001577,2]
[393223842,1762345756720,-500.0,0.0001577,2]
[393223843,1762345756738,-264.07803979,0.0001577,2]
[393223844,1762345756757,-500.0,0.0001577,2]
[393223845,1762345756774,-500.0,0.0001577,2]
[393223846,1762345756796,-500.0,0.0001577,2]
[393223847,1762345756815,-500.0,0.0001577,2]
[393223848,1762345756837,-500.0,0.0001577,2]
[393223849,1762345756855,-500.0,0.0001577,2]
[393223850,1762345756874,-500.0,0.0001577,2]
[393223851,1762345756903,-500.0,0.0001577,2]
[393223852,1762345756926,-243.24216317,0.0001577,2]
[393223853,1762345756946,-500.0,0.0001577,2]
[393223854,1762345756965,-500.0,0.0001577,2]
[393223855,1762345756988,-500.0,0.0001577,2]
[393223856,1762345757009,-500.0,0.0001577,2]
[393223857,1762345757031,-438.16439483,0.0001577,2]
[393223858,1762345757052,-500.0,0.0001577,2]
[393223859,1762345757074,-500.0,0.0001577,2]
[393223860,1762345757095,-500.0,0.0001577,2]
[393223861,1762345757116,-500.0,0.0001577,2]
[393223862,1762345757137,-500.0,0.0001577,2]
[393223863,1762345757164,-500.0,0.0001577,2]
[393223864,1762345757186,-500.0,0.0001577,2]
[393223865,1762345757211,-500.0,0.0001577,2]
[393223866,1762345757231,-243.17539315,0.00015773,2]
[393223867,1762345757251,-500.0,0.00015773,2]
[393223868,1762345757270,-500.0,0.00015773,2]
[393223869,1762345757290,-381.86825272,0.00015773,2]
[393223870,1762345757312,-22571.60669224,0.00015773,2]
[393223951,1762345837622,-273.21469225,0.00015174,2]
[393223952,1762345837632,-874.2870152,0.00015174,2]
[393223953,1762345837640,-348.54314502,0.00015174,2]
[393223954,1762345837651,-1016.16424277,0.00015174,2]
[393223956,1762345837661,-500.0,0.00015772,2]
[393223958,1762345837670,-196.00867109,0.00015772,2]
[393223960,1762345837679,-500.0,0.00015772,2]
[393223962,1762345837688,-296.56908748,0.00015772,2]
[393223964,1762345837697,-249.24912924,0.00015772,2]
[393223966,1762345837708,-207.00884962,0.00015772,2]
[393223968,1762345837717,-300.0,0.00015772,2]
[393223970,1762345837726,-500.0,0.00015773,2]
[393223972,1762345837735,-1801.43716732,0.00015773,2]
[393223974,1762345837746,-10257.5247646,0.00015773,2]
[393224022,1762345839916,-3e-08,0.00015773,2]
[393224024,1762345839927,-28998.67804589,0.00015773,2]
[393224237,1762345842929,-249.54302935,0.00015615,2]
[393224238,1762345842939,-6.65697065,0.00015773,2]
[393224239,1762345842984,-5860.54719389,0.00015773,2]
[393224241,1762345842995,-1618.90378063,0.00015773,2]
[393224265,1762345846210,-251.07902151,0.00015773,2]
[393224276,1762345962700,150.0,0.000215,4]
[393224277,1762346006055,-403.62763755,0.00014829,2]
[393224281,1762346020590,-207.40908845,0.00014729,2]
[393224282,1762346023960,-227.20202614,0.00014729,2]
[393224283,1762346027236,-283.071826,0.00014729,2]
[393224284,1762346027258,-93.40989427,0.00014829,2]
[393224290,1762346098193,820.194475,0.00013699,2]
[393224374,1762346165417,166.0268379,0.00021025,5]
[393224599,1762346426092,-327.97883705,0.00014754,2]
[393224600,1762346429228,-280.27552348,0.00014754,2]
[393224602,1762346432467,-166.60269697,0.00014754,2]
[393224604,1762346434984,-229.30808311,0.00014754,2]
[393224608,1762346438846,-236.29349984,0.00014754,2]
[393224624,1762346500965,-121.11989285,0.00014754,2]
[393224625,1762346500987,-62.73596642,0.000148,2]
[393224630,1762346515413,-237.26403358,0.000148,2]
[393224631,1762346515441,-23.64164818,0.000148,2]
[393224633,1762346517623,-276.35835182,0.000148,2]
[393224634,1762346517647,-7.22375046,0.00014829,2]
[393224637,1762346530424,-233.99635603,0.000148,2]
[393224666,1762346561555,-262.43490972,0.000148,2]
[393224682,1762346737001,1396.21668,0.00014377,2]
[393224684,1762346737595,-268.171401,0.00014522,2]
[393224688,1762346753813,434.92878931,0.00014377,2]
[393224689,1762346754655,-191.08448377,0.00014522,2]
[393224691,1762346761978,936.96079523,0.00014377,2]
[393224692,1762346762652,-152.7107901,0.00014522,2]
[393224695,1762346765945,-195.20654203,0.00014522,2]
[393224696,1762346767480,-479.25259849,0.00014522,2]
[393224697,1762346768975,-245.77422013,0.00014415,2]
[393224698,1762346772983,-85.93120306,0.00014415,2]
[393224699,1762346773006,-155.79163807,0.00014415,2]
[393224700,1762346777089,-223.30027415,0.00014415,2]
[393224701,1762346777112,-90.9838314,0.00014415,2]
[393224702,1762346778668,343.79527387,0.00014271,2]
[393224703,1762346780738,-174.33803174,0.00014415,2]
[393224704,1762346782994,-326.41691859,0.00014415,2]
[393224705,1762346783018,-65.93214272,0.00014522,2]
[393224710,1762346800454,-300.0,0.000145,2]
[393224724,1762346815417,-151.0,0.000145,2]
[393224726,1762346852113,-43.85872189,0.00014522,2]
[393224727,1762346852136,-208.75165799,0.00014815,2]
[393224728,1762346852155,-3.53954902,0.00014829,2]
[393224729,1762346852174,-313.79392323,0.00015174,2]
[393224730,1762346852194,-358.26300492,0.00015174,2]
[393224731,1762346852214,-735.01293009,0.00015574,2]
[393224732,1762346852235,-409.60284326,0.00015668,2]
[393224733,1762346852254,-300.0,0.00015672,2]
[393224734,1762346852276,-1868.64267286,0.00015673,2]
[393224735,1762346858952,300.0,0.00014355,2]
[393224736,1762346859792,-245.27588994,0.000145,2]
[393224797,1762347031815,-54.72411006,0.000145,2]
[393224798,1762347031824,-204.57662483,0.00015086,2]
[393224800,1762347031833,-300.0,0.00015672,2]
[393224802,1762347031842,-300.0,0.00015672,2]
[393224804,1762347031851,-300.0,0.00015672,2]
[393224805,1762347031861,-91.50536121,0.00015673,2]
[393224808,1762347031873,-408.49463879,0.00015673,2]
[393224809,1762347031882,-371.50196243,0.00015673,2]
[393224810,1762347031893,-128.49803757,0.00015673,2]
[393224811,1762347031901,-500.0,0.00015673,2]
[393224812,1762347031911,-758.49196243,0.00015673,2]
[393224813,1762347031922,-384.3754,0.00015673,2]
[393224854,1762347038577,-1736.90659331,0.00015673,2]
[393224857,1762347040233,-3e-08,0.00015673,2]
[393224858,1762347040245,-532.5263815,0.00015673,2]
[393225140,1762347043141,-273.24839406,0.00015673,2]
[393225190,1762347046392,-327.86938659,0.00015673,2]
[393225191,1762347046449,-383.27,0.00015673,2]
[393225193,1762347168160,500.0,0.00037493,60]
[393225194,1762347168461,500.0,0.00037493,60]
[393225195,1762347168766,622.07730386,0.00037493,60]
[393225214,1762347603226,-179.85443994,0.00015174,2]
[393225215,1762347618258,-176.974,0.00015359,2]
[393225216,1762347618288,-200.48509233,0.00015379,2]
[393225217,1762347618316,-960.83267073,0.00015399,2]
[393225218,1762347618344,-627.50801535,0.00015672,2]
[393225219,1762347618372,-1200.0,0.00015672,2]
[393225220,1762347618400,-415.37396387,0.00015673,2]
[393225221,1762347618430,-519.49208786,0.00015673,2]
[393225222,1762347618460,-501.32630293,0.00015673,2]
[393225223,1762347618487,-365.48542193,0.00015673,2]
[393225224,1762347618639,-65.05489,0.00015673,2]
[393225225,1762347618665,-501.37146483,0.00015673,2]
[393225226,1762347618692,-505.75955991,0.00015673,2]
[393225227,1762347618720,-471.2770702,0.00015673,2]
[393225228,1762347618747,-502.96268208,0.00015673,2]
[393225229,1762347618773,-500.0,0.00015673,2]
[393225230,1762347618800,-500.0,0.00015673,2]
[393225231,1762347618826,-503.90725334,0.00015673,2]
[393225232,1762347619057,-2721.47104143,0.00015673,2]
[393225233,1762347619070,-10000.01,0.00015673,2]
[393225234,1762347619088,-10000.01,0.00015673,2]
[393225235,1762347619120,-10000.01,0.00015673,2]
[393225236,1762347619159,-1429.14578274,0.00015673,2]
[393225237,1762347619183,-7141.71843452,0.00015673,2]
[393225238,1762347619192,-1429.14578274,0.00015673,2]
[393225239,1762347619207,-8570.86421726,0.00015673,2]
[393225240,1762347619240,-10000.01,0.00015673,2]
[393225241,1762347619314,-10000.01,0.00015673,2]
[393225242,1762347619452,-10000.01,0.00015673,2]
[393225243,1762347621182,-10000.01,0.00015673,2]
[393225244,1762347624226,-10000.01,0.00015673,2]
[393225245,1762347624443,-10000.01,0.00015673,2]
[393225246,1762347624471,-10000.01,0.00015673,2]
[393225247,1762347624602,-952.48200826,0.000156,2]
[393225248,1762347624641,-8095.04598348,0.00015673,2]
[393225249,1762347624708,-10000.01,0.00015673,2]
[393225250,1762347624839,-10000.01,0.00015673,2]
[393225251,1762347624988,-10000.01,0.00015673,2]
[393225252,1762347625099,-10000.01,0.00015673,2]
[393225253,1762347625239,-10000.01,0.00015673,2]
[393225257,1762347627402,-10000.01,0.00015673,2]
[393225258,1762347630328,-10000.01,0.00015673,2]
[393225259,1762347630425,-10000.01,0.00015673,2]
[393225260,1762347630542,-10000.01,0.00015673,2]
[393225261,1762347630656,-10000.01,0.00015673,2]
[393225262,1762347630793,-10000.01,0.00015673,2]
[393225263,1762347630934,-10000.01,0.00015673,2]
[393225264,1762347631088,-10000.01,0.00015673,2]
[393225265,1762347631220,-10000.01,0.00015673,2]
[393225266,1762347631368,-10000.01,0.00015673,2]
[393225267,1762347633710,-10000.01,0.00015673,2]
[393225268,1762347636408,-10000.01,0.00015673,2]
[393225269,1762347636550,-10000.01,0.00015673,2]
[393225270,1762347636657,-10000.01,0.00015673,2]
[393225271,1762347636783,-10000.01,0.00015673,2]
[393225272,1762347636926,-10000.01,0.00015673,2]
[393225273,1762347637027,-10000.01,0.00015673,2]
[393225274,1762347637135,-10000.01,0.00015673,2]
[393225275,1762347637249,-10000.01,0.00015673,2]
[393225276,1762347637540,-10000.01,0.00015673,2]
[393225277,1762347648776,-2477.50375296,0.00015516,2]
[393225278,1762347648804,-358.40248787,0.000156,2]
[393225279,1762347648833,-500.0,0.00015672,2]
[393225280,1762347648862,-324.19615108,0.00015672,2]
[393225281,1762347648935,-2679.80521618,0.00015673,2]
[393225282,1762347649201,-10000.01,0.00015673,2]
[393225283,1762347650129,-10000.01,0.00015673,2]
[393225284,1762347650236,-10000.01,0.00015673,2]
[393225285,1762347650374,-10000.01,0.00015673,2]
[393225286,1762347650492,-10000.01,0.00015673,2]
[393225287,1762347650605,-10000.01,0.00015673,2]
[393225288,1762347650727,-10000.01,0.00015673,2]
[393225289,1762347650861,-10000.01,0.00015673,2]
[393225290,1762347651008,-10000.01,0.00015673,2]
[393225291,1762347651615,-10000.01,0.00015673,2]
[393225292,1762347651728,-10000.01,0.00015673,2]
[393225293,1762347651883,-10000.01,0.00015673,2]
[393225294,1762347651985,-10000.01,0.00015673,2]
[393225295,1762347652105,-10000.01,0.00015673,2]
[393225300,1762347709724,1004.518085,0.00032876,120]
[393225301,1762347851372,6635.23,0.00032877,120]
[393225315,1762347930116,-196.47539048,0.00015671,2]
[393225316,1762347930136,-204.87035622,0.00015672,2]
[393225317,1762347930156,-179.69267238,0.00015672,2]
[393225318,1762347930176,-500.0,0.00015672,2]
[393225319,1762347930196,-188.98721799,0.00015672,2]
[393225320,1762347930216,-500.0,0.00015672,2]
[393225321,1762347930237,-300.0,0.00015672,2]
[393225322,1762347930256,-503.91336639,0.00015673,2]
[393225323,1762347930276,-483.11396341,0.00015673,2]
[393225332,1762348044197,150.0,0.00037494,30]
[393225333,1762348167166,-1114.14262898,0.00015263,2]
[393225334,1762348167186,-1114.14262898,0.00015417,2]
[393225335,1762348167204,-1373.97830523,0.00015529,2]
[393225336,1762348167223,-300.0,0.00015572,2]
[393225337,1762348167244,-667397.73643681,0.00015573,2]
[393225338,1762348172107,-16639.11250638,0.00015573,2]
[393225424,1762348240126,-963.15105681,0.00015263,2]
[393225426,1762348240136,-192.54588267,0.0001534,2]
[393225428,1762348240146,-963.15105681,0.00015417,2]
[393225431,1762348240159,-502.73788384,0.00015573,2]
[393225433,1762348240168,-963.15105681,0.00015573,2]
[393225435,1762348240178,-800.54045205,0.00015573,2]
[393225437,1762348240187,-313.60217693,0.00015573,2]
[393225439,1762348240197,-1200.0,0.00015671,2]
[393225441,1762348240207,-1000.0,0.00015672,2]
[393225443,1762348240216,-1000.0,0.00015672,2]
[393225445,1762348240225,-1000.0,0.00015672,2]
[393225447,1762348240235,-1000.0,0.00015672,2]
[393225449,1762348240245,-952.74733928,0.00015672,2]
[393225451,1762348240255,-105.41493875,0.00015673,2]
[393225453,1762348240264,-307.82784461,0.00015673,2]
[393225455,1762348240274,-500.0,0.00015673,2]
[393225457,1762348240283,-500.0,0.00015673,2]
[393225459,1762348240293,-502.52305216,0.00015673,2]
[393225461,1762348240301,-500.0,0.00015673,2]
[393225463,1762348240311,-500.63534299,0.00015673,2]
[393225465,1762348240320,-620.98592619,0.00015673,2]
[393225467,1762348240329,-528.7229298,0.00015673,2]
[393225468,1762348240339,-21953.55094375,0.00015673,2]
[393225471,1762348240348,-166.0,0.00015673,2]
[393225472,1762348240359,-166.0,0.00015673,2]
[393225475,1762348240368,-176.3809575,0.00015673,2]
[393225476,1762348240378,-166.0,0.00015673,2]
[393225479,1762348240388,-151.0,0.00015673,2]
[393225481,1762348240397,-166.0,0.00015673,2]
[393225482,1762348240406,-332.0,0.00015673,2]
[393225485,1762348240415,-151.0,0.00015673,2]
[393225487,1762348240425,-332.0,0.00015673,2]
[393225489,1762348240435,-332.0,0.00015673,2]
[393225491,1762348240444,-332.0,0.00015673,2]
[393225492,1762348240454,-166.0,0.00015673,2]
[393225493,1762348240464,-332.0,0.00015673,2]
[393225494,1762348240474,-166.0,0.00015673,2]
[393225495,1762348240483,-332.0,0.00015673,2]
[393225496,1762348240493,-332.0,0.00015673,2]
[393225497,1762348240502,-172.0,0.00015673,2]
[393225498,1762348240512,-332.0,0.00015673,2]
[393225499,1762348240522,-332.0,0.00015673,2]
[393225500,1762348240531,-332.0,0.00015673,2]
[393225501,1762348240541,-332.0,0.00015673,2]
[393225502,1762348240551,-332.0,0.00015673,2]
[393225503,1762348240560,-332.0,0.00015673,2]
[393225504,1762348240570,-332.0,0.00015673,2]
[393225511,1762348240700,-332.0,0.00015673,2]
[393225513,1762348240710,-332.0,0.00015673,2]
[393225515,1762348240719,-332.0,0.00015673,2]
[393225517,1762348240729,-332.0,0.00015673,2]
[393225519,1762348240743,-332.0,0.00015673,2]
[393225521,1762348240752,-332.0,0.00015673,2]
[393225524,1762348240763,-332.0,0.00015673,2]
[393225526,1762348240772,-178.79891818,0.00015673,2]
[393225527,1762348240782,-500.0,0.000157,2]
[393225529,1762348240791,-152.4,0.000157,2]
[393225532,1762348240801,-500.0,0.00015769,2]
[393225534,1762348240811,-500.0,0.00015769,2]
[393225536,1762348240820,-500.0,0.00015769,2]
[393225538,1762348240829,-500.0,0.0001577,2]
[393225539,1762348240839,-500.0,0.0001577,2]
[393225541,1762348240848,-500.0,0.0001577,2]
[393225544,1762348240858,-501.69586011,0.0001577,2]
[393225546,1762348240867,-208.01592007,0.0001577,2]
[393225548,1762348240877,-237.73248008,0.0001577,2]
[393225550,1762348240888,-371.08554312,0.0001577,2]
[393225552,1762348240897,-331.73274429,0.0001577,2]
[393225554,1762348240906,-379.12313633,0.0001577,2]
[393225556,1762348240915,-125.38625797,0.0001577,2]
[393225938,1762348301522,157.01,0.00015463,3]
[393225939,1762348301750,314.02,0.00016833,3]
[393225940,1762348312140,471.04,0.00015463,3]
[393225942,1762348434652,2002.88709159,0.000215,4]
[393225943,1762348451643,5000.0,0.000215,4]
[393225944,1762348461746,5000.0,0.000215,4]
[393225945,1762348478366,3087.06172906,0.000215,4]
[393225946,1762348486444,1785.43218245,0.000215,4]
[393225951,1762348688970,5000.0,0.000181,5]
[393225953,1762348712606,5000.0,0.000181,5]
[393225958,1762348864995,795.893688,0.00013699,2]
[393225959,1762348883311,202.53716495,0.00014232,2]
[393225960,1762348885797,364.20233001,0.00014232,2]
[393225961,1762348945587,-163.80336321,0.00014684,2]
[393225962,1762348950137,-333.66712899,0.00014684,2]
[393225964,1762349006058,-158.86447604,0.00014556,2]
[393225965,1762349009867,-223.97224377,0.00014556,2]
[393225966,1762349014022,-306.56675804,0.00014556,2]
[393225967,1762349016083,-210.09170906,0.00014556,2]
[393225968,1762349018341,-201.30505731,0.00014556,2]
[393225971,1762349159088,-92.94019198,0.00014556,2]
[393225972,1762349159109,-191.69496502,0.00014907,2]
[393225973,1762349159129,-21.07013968,0.00014982,2]
[393225974,1762349192702,377.22009093,0.00014232,2]
[393225977,1762349232086,-327.79251416,0.00014832,2]
[393225978,1762349235075,-515.82883942,0.00014832,2]
[393225979,1762349235097,-187.86106572,0.00014907,2]
[393225980,1762349235118,-466.40126265,0.00014982,2]
[393225981,1762349235139,-309.30305925,0.00014982,2]
[393225982,1762349235163,-353.48921057,0.00014982,2]
[393225983,1762349235185,-551.77456462,0.00014982,2]
[393225984,1762349235212,-852.14171966,0.00015369,2]
[393225985,1762349235232,-300.0,0.00015399,2]
[393225986,1762349235254,-3202.16180808,0.000154,2]
[393225987,1762349235274,-300.0,0.00015466,2]
[393225988,1762349235297,-500.0,0.00015467,2]
[393225989,1762349235319,-500.0,0.00015467,2]
[393225990,1762349235341,-500.0,0.00015467,2]
[393225991,1762349235365,-339.76823631,0.00015467,2]
[393225992,1762349235386,-515.09596778,0.00015467,2]
[393225993,1762349235408,-500.0,0.00015467,2]
[393225994,1762349235429,-500.0,0.00015467,2]
[393225995,1762349235449,-1200.0,0.00015468,2]
[393225996,1762349235469,-736.17426594,0.00015468,2]
[393226005,1762349363074,-331.67828111,0.00014472,2]
[393226038,1762349432178,-35.17024979,0.00014472,2]
[393226040,1762349432189,-1010.78301426,0.00015,2]
[393226042,1762349432200,-196.58580574,0.00015,2]
[393226044,1762349432212,-449.06092021,0.00015314,2]
[393226047,1762349432235,-74.48214861,0.00015314,2]
[393226049,1762349432245,-176.974,0.00015469,2]
[393226051,1762349432255,-279.45510753,0.00015472,2]
[393226053,1762349432265,-250.6241993,0.00015472,2]
[393226054,1762349432276,-164.66547393,0.00015472,2]
[393226056,1762349432287,-204.47045852,0.00015472,2]
[393226058,1762349432299,-1200.0,0.00015472,2]
[393226059,1762349432310,-501.61963227,0.00015473,2]
[393226060,1762349432320,-502.73923075,0.00015473,2]
[393226061,1762349432330,-500.0,0.00015473,2]
[393226062,1762349432340,-500.0,0.00015473,2]
[393226063,1762349432350,-500.0,0.00015473,2]
[393226064,1762349432361,-500.0,0.00015473,2]
[393226065,1762349432371,-407.22273631,0.00015473,2]
[393226066,1762349432381,-500.0,0.00015473,2]
[393226067,1762349432391,-21071.74701278,0.00015473,2]
[393226075,1762349432551,-5004.89092027,0.00015473,2]
[393226087,1762349438340,-1370.0,0.00015473,2]
[393226088,1762349438351,-5048.54117001,0.00015473,2]
[393226089,1762349438363,-517.42876019,0.00015473,2]
[393226090,1762349438374,-509.70119414,0.00015473,2]
[393226112,1762349440262,-890.80323467,0.00015473,2]
[393226435,1762349443614,-14730.12595857,0.00015473,2]
[393226478,1762349446654,-912.11192935,0.00015473,2]
[393226479,1762349467901,257.52,0.00015463,3]
[393226480,1762349468122,515.04,0.00016833,3]
[393226481,1762349478530,772.58,0.00015463,3]
[393226483,1762349543367,500.0,0.00037489,60]
[393226484,1762349543578,500.0,0.00037489,60]
[393226485,1762349543795,500.0,0.00037489,60]
[393226486,1762349545044,168.06947314,0.00037489,60]
[393226487,1762349621151,601.0,0.000167,3]
[393226506,1762349789828,359.99940318,0.00014232,2]
[393226607,1762350001243,878.553607,0.00014379,2]
[393226647,1762350143909,14799.05413843,0.00037487,30]
[393226691,1762350335135,-165.57052967,0.00015291,2]
[393226762,1762350564138,-183.79243381,0.00015331,2]
[393226763,1762350564161,-160.0,0.0001537,2]
[393226764,1762350564180,-382.43355113,0.00015372,2]
[393226765,1762350564200,-300.0,0.00015372,2]
[393226766,1762350564219,-300.0,0.00015372,2]
[393226767,1762350564239,-500.0,0.00015373,2]
[393226768,1762350564257,-578.47903196,0.00015373,2]
[393226769,1762350564277,-497.35053998,0.00015373,2]
[393226770,1762350564296,-500.0,0.00015373,2]
[393226771,1762350564316,-4168.06791888,0.00015373,2]
[393226772,1762350564335,-500.0,0.00015373,2]
[393226773,1762350564356,-13403.2662577,0.00015373,2]
[393226774,1762350567086,-128645.3230146,0.00015373,2]
[393226775,1762350568083,-171466.1606,0.00015373,2]
[393226776,1762350571095,-91068.7035997,0.00015373,2]
[393226806,1762350632431,-455.03731312,0.00015332,2]
[393226808,1762350632443,-335.13883559,0.00015332,2]
[393226810,1762350632453,-300.0,0.00015372,2]
[393226812,1762350632462,-656.90116441,0.00015373,2]
[393226830,1762350638302,-517.18333002,0.00015373,2]
[393226835,1762350638360,-389.4728396,0.00015373,2]
[393226850,1762350640555,-567.41619488,0.00015373,2]
[393226851,1762350640617,-2310.14669781,0.00015373,2]
[393226852,1762350640629,-10716.814233,0.00015373,2]
[393226853,1762350640640,-584.84494157,0.00015373,2]
[393227189,1762350646760,-797.02009222,0.00015373,2]
[393227193,1762350687459,180.26,0.00015363,3]
[393227194,1762350687714,360.52,0.00016733,3]
[393227195,1762350698362,540.78,0.00015363,3]
[393227248,1762350876094,500.0,0.00037463,60]
[393227249,1762350876316,500.0,0.00037463,60]
[393227250,1762350876568,500.0,0.00037463,60]
[393227251,1762350876812,500.0,0.00037463,60]
[393227252,1762350877040,500.0,0.00037463,60]
[393227253,1762350877327,395.18837786,0.00037463,60]
[393227266,1762351031586,-163.10206514,0.00014607,2]
[393227274,1762351240989,-37.17326226,0.00014607,2]
[393227275,1762351241018,-180.11658514,0.00014817,2]
[393227276,1762351241045,-527.36162443,0.00015028,2]
[393227277,1762351241075,-267.70348579,0.00015272,2]
[393227278,1762351241104,-300.0,0.00015272,2]
[393227279,1762351241122,-37.17326226,0.00015273,2]
[393227280,1762351241133,-180.11658514,0.00015273,2]
[393227281,1762351241144,-527.36162443,0.00015273,2]
[393227282,1762351241158,-267.70348579,0.00015273,2]
[393227283,1762351241173,-300.0,0.00015273,2]
[393227284,1762351241183,-7375.30008476,0.00015273,2]
[393227285,1762351241212,-10000.01,0.00015273,2]
[393227286,1762351241324,-10000.01,0.00015273,2]
[393227287,1762351241523,-10000.01,0.00015273,2]
[393227288,1762351241647,-10000.01,0.00015273,2]
[393227289,1762351241822,-10000.01,0.00015273,2]
[393227290,1762351241942,-10000.01,0.00015273,2]
[393227291,1762351242084,-10000.01,0.00015273,2]
[393227292,1762351242232,-10000.01,0.00015273,2]
[393227293,1762351242366,-10000.01,0.00015273,2]
[393227294,1762351246905,-10000.01,0.00015273,2]
[393227295,1762351247379,-10000.01,0.00015273,2]
[393227296,1762351247497,-10000.01,0.00015273,2]
[393227297,1762351247627,-10000.01,0.00015273,2]
[393227298,1762351247734,-10000.01,0.00015273,2]
[393227299,1762351247903,-10000.01,0.00015273,2]
[393227300,1762351248024,-10000.01,0.00015273,2]
[393227301,1762351248150,-10000.01,0.00015273,2]
[393227302,1762351248292,-10000.01,0.00015273,2]
[393227303,1762351248427,-10000.01,0.00015273,2]
[393227304,1762351252983,-10000.01,0.00015273,2]
[393227305,1762351253100,-10000.01,0.00015273,2]
[393227306,1762351253232,-10000.01,0.00015273,2]
[393227307,1762351253379,-10000.01,0.00015273,2]
[393227308,1762351253514,-10000.01,0.00015273,2]
[393227309,1762351253645,-10000.01,0.00015273,2]
[393227310,1762351253766,-10000.01,0.00015273,2]
[393227311,1762351253888,-10000.01,0.00015273,2]
[393227312,1762351254006,-10000.01,0.00015273,2]
[393227313,1762351254115,-10000.01,0.00015273,2]
[393227318,1762351259186,-10000.01,0.00015273,2]
[393227319,1762351259415,-10000.01,0.00015273,2]
[393227320,1762351259547,-10000.01,0.00015273,2]
[393227321,1762351259680,-10000.01,0.00015273,2]
[393227322,1762351259849,-10000.01,0.00015273,2]
[393227323,1762351259989,-10000.01,0.00015273,2]
[393227324,1762351260132,-10000.01,0.00015273,2]
[393227325,1762351260269,-10000.01,0.00015273,2]
[393227326,1762351260384,-10000.01,0.00015273,2]
[393227327,1762351260501,-10000.01,0.00015273,2]
[393227333,1762351268267,-928.36772604,0.000152,2]
[393227334,1762351268298,-300.0,0.00015272,2]
[393227335,1762351268318,-928.36772604,0.00015273,2]
[393227336,1762351268329,-300.0,0.00015273,2]
[393227337,1762351268341,-7543.27454792,0.00015273,2]
[393227338,1762351268377,-10000.01,0.00015273,2]
[393227339,1762351268539,-10000.01,0.00015273,2]
[393227340,1762351268696,-10000.01,0.00015273,2]
[393227341,1762351268830,-10000.01,0.00015273,2]
[393227342,1762351268955,-10000.01,0.00015273,2]
[393227343,1762351269124,-10000.01,0.00015273,2]
[393227344,1762351269272,-10000.01,0.00015273,2]
[393227345,1762351269420,-10000.01,0.00015273,2]
[393227346,1762351269668,-10000.01,0.00015273,2]
[393227349,1762351291232,500.0,0.00037485,60]
[393227350,1762351291459,500.0,0.00037485,60]
[393227351,1762351291723,500.0,0.00037485,60]
[393227352,1762351291944,500.0,0.00037485,60]
[393227353,1762351292192,500.0,0.00037485,60]
[393227354,1762351292420,500.0,0.00037485,60]
[393227355,1762351292652,500.0,0.00037485,60]
[393227356,1762351292889,500.0,0.00037485,60]
[393227357,1762351293126,500.0,0.00037485,60]
[393227358,1762351293367,500.0,0.00037485,60]
[393227359,1762351293614,500.0,0.00037485,60]
[393227360,1762351293878,500.0,0.00037485,60]
[393227361,1762351294112,500.0,0.00037485,60]
[393227362,1762351294347,500.0,0.00037485,60]
[393227363,1762351294605,500.0,0.00037485,60]
[393227364,1762351294873,500.0,0.00037485,120]
[393227365,1762351295118,500.0,0.00037485,120]
[393227366,1762351295354,500.0,0.00037485,120]
[393227367,1762351295640,305.20987278,0.00037485,120]
[393227376,1762351332944,199.27,0.00032877,120]
[393227416,1762351558133,-857.12207133,0.000152,2]
[393227417,1762351558153,-190.49640166,0.000152,2]
[393227418,1762351558183,-262.2,0.000152,2]
[393227419,1762351558204,-184.45346309,0.00015225,2]